Cogmind - Beta 17 @@@ ROGUE MODE // 2026.07.28 @ 03:56:17 Player: rfdegt Result: Destroyed by G-67 Veteran with Field Laser Performance ------------- Evolutions (4) 2000 Regions Visited (11) 2200 Robots Destroyed (106) 530 Value Destroyed (3065) 3065 Prototype IDs (36) 720 Alien Tech Used (0) 0 Bonus (312) 312 TOTAL SCORE: 8827 Bonus ------- High Alert Combat Kills 12 Aligned with FarCom 300 Cogmind --------- Core Integrity 0/850 Matter 283/300 Energy 99/100 System Corruption 3% Temperature Cool (21) Movement Core (50) Location -6/Factory Parts ------- > --- POWER (2) -------- (None) > --- PROPULSION (3) --- (None) > --- UTILITY (7) ------ Experimental Signal Interpreter Experimental Signal Interpreter Modified TNC > --- WEAPON (3) ------- (None) > --- INVENTORY (5) ---- Cryofiber Web Advanced Dynamic Insulation System Compact Ion Cannon Compact Ion Cannon PL-3XN's Ring of Power Peak State ------------ > --- POWER ------------ Light Angular Momentum Engine > --- PROPULSION ------- Carbon-fiber Leg Carbon-fiber Leg Compact Wheel > --- UTILITY ---------- Cryofiber Web Advanced Heat Sink Improved Cooling System Medium Storage Unit Experimental Signal Interpreter Modified TNC Precision Energy Filter > --- WEAPON ----------- Advanced Beam Rifle Compact Ion Cannon Enhanced Coil Gun > --- INVENTORY -------- Cryofiber Web Experimental Signal Interpreter Armor Integrity Analyzer Advanced Dynamic Insulation System Advanced Beam Rifle Proton Burst Cannon Compact Ion Cannon Compact Ion Cannon PL-3XN's Ring of Power [Rating: 68] Favorites ----------- Power Cooled Ion Engine Engine Cooled Ion Engine Power Core Nuclear Core Propulsion Compact Wheel Treads Light Treads Leg Carbon-fiber Leg Wheel Compact Wheel Utility Medium Storage Unit Device Cryofiber Web Storage Medium Storage Unit Processor Modified TNC Protection Hardened Medium Armor Plating Weapon Precision Beam Rifle Energy Gun Precision Beam Rifle Energy Cannon Heavy Particle Cannon Ballistic Gun Enhanced Coil Gun Launcher Grenade Launcher Build | -11 -10 -10 -9 -9 -9 -8 -8 -7 -7 -7 -6 ------- Run | Yrd Mat Min Mat Min Exi Min Mat Fac Low Low Fac Slots Evolved 8 | . . . 2 . . . 2 2 . . 2 Power 1 | . . . . . . . . . . . 1 Propulsion 1 | . . . . . . . . 1 . . . Utility 5 | . . . 2 . . . 1 1 . . 1 Weapon 1 | . . . . . . . 1 . . . . Parts Attached 74 | 8 1 3 7 1 2 6 12 22 . . 12 Power 8 | 1 . 1 . . 2 . . 2 . . 2 Engine 7 | 1 . 1 . . 2 . . 2 . . 1 Core 1 | . . . . . . . . . . . 1 Reactor . | . . . . . . . . . . . . Propulsion 21 | 2 . . 3 1 . 3 2 7 . . 3 Treads 1 | . . . 1 . . . . . . . . Leg 2 | . . . . . . . . . . . 2 Wheel 18 | 2 . . 2 1 . 3 2 7 . . 1 Hover . | . . . . . . . . . . . . Flight . | . . . . . . . . . . . . Utility 23 | 3 1 . 3 . . 1 3 8 . . 4 Device 13 | 2 . . 3 . . 1 1 4 . . 2 Storage 3 | 1 1 . . . . . . . . . 1 Processor 4 | . . . . . . . 1 2 . . 1 Hackware . | . . . . . . . . . . . . Protection 3 | . . . . . . . 1 2 . . . Artifact . | . . . . . . . . . . . . Weapon 22 | 2 . 2 1 . . 2 7 5 . . 3 Energy Gun 12 | 2 . . 1 . . 1 6 1 . . 1 Energy Cannon 8 | . . 2 . . . . 1 4 . . 1 Ballistic Gun 1 | . . . . . . . . . . . 1 Ballistic Cannon . | . . . . . . . . . . . . Launcher 1 | . . . . . . 1 . . . . . Special Weapon . | . . . . . . . . . . . . Impact Weapon . | . . . . . . . . . . . . Slashing Weapon . | . . . . . . . . . . . . Piercing Weapon . | . . . . . . . . . . . . Special Melee Weapon . | . . . . . . . . . . . . Unidentified Prototypes 12 | . . . . . 1 . 2 7 . . 2 Parts Lost 20 | . . . 1 1 . . . 4 . . 14 Power 4 | . . . . . . . . 1 . . 3 Propulsion 7 | . . . 1 1 . . . 2 . . 3 Utility 5 | . . . . . . . . 1 . . 4 Weapon 4 | . . . . . . . . . . . 4 Highest Loss Streak 8 | . . . 1 1 . . . 3 . . 8 To Critical Strikes . | . . . . . . . . . . . . Average Backups 9 | 2 9 9 9 10 9 10 9 9 8 8 7 Power . | . 1 . 1 2 1 1 1 . . 1 . Propulsion . | 1 2 . . . . . . . . . . Utility 4 | . 3 6 5 5 5 6 5 4 4 4 4 Weapon 3 | . 1 2 2 3 3 3 2 3 4 3 3 Tool/Special . | . . . . . . . . . . . . Unused Backups 20 | . 1 5 2 . . . . 7 1 1 3 Power 3 | . 1 1 . . . . . . 1 . . Propulsion 2 | . . 2 . . . . . . . . . Utility 11 | . . 1 1 . . . . 7 . . 2 Weapon 4 | . . 1 1 . . . . . . 1 1 Tool/Special . | . . . . . . . . . . . . Average Slot Usage (%) 97 | . 100 99 98 94 100 100 99 99 100 100 78 Engine 8 | . 14 14 11 11 11 11 9 7 7 7 5 Wheel 21 | . 28 28 17 16 22 22 18 22 23 23 9 Device 20 | . 14 14 32 33 33 33 18 15 15 15 20 Storage 8 | . 14 14 11 11 11 11 9 7 7 7 5 Processor 8 | . . . . . . . 8 14 15 15 13 Protection 4 | . . . . . . . 8 6 7 7 1 Energy Gun 16 | . 28 26 22 22 22 21 21 14 7 7 6 Energy Cannon 5 | . . . . . . . 5 7 15 15 7 Peak Build Rating 68 | 9 8 10 17 17 18 18 33 53 53 53 68 Average Rating 32 | 5 7 9 15 16 17 18 29 38 52 53 56 On Entrance 23 | . 7 8 10 17 17 18 18 33 53 53 53 Avg Prop Armor Cover (%) 6 | . . . 8 . . . . . . . 2 Naked Turns . | . . . . . . . . . . . . Heaviest Build 57 | 13 18 22 23 23 26 27 37 50 45 45 57 Greatest Support 48 | 20 20 20 20 20 20 32 32 48 48 48 48 Greatest Overweight (x) 2 | . . 1 2 2 1 1 1 2 . . 2 Average Overweight (x) . | . . . 1 1 1 . . . . . 1 Largest Inventory Capacity 10 | 8 10 10 10 10 10 10 10 10 10 10 10 Average Capacity 9 | 6 9 10 10 10 10 10 10 10 10 10 9 Most Carried 10 | 6 10 10 10 10 10 10 10 10 10 10 10 Average Carried 9 | 2 9 9 9 10 9 10 9 9 9 9 8 Final Capacity 10 | 8 10 10 10 10 10 10 10 10 10 10 5 Final Carried 10 | 6 10 10 10 10 10 10 10 9 10 10 5 Class Distribution -------------------- 38% | Skirmisher 22% | Scavenger-Mutant 15% | Tank 13% | Mutant 9% | Scavenger-Skirmisher Dominant Class ---------------- Mutant | -10/Materials Mutant | -10/Mines Mutant | -9/Materials Scavenger-Mutant | -9/Mines Scavenger-Mutant | -9/Exiles Scavenger-Mutant | -8/Mines Skirmisher | -8/Materials Skirmisher | -7/Factory Tank | -7/Lower Caves Tank | -7/Lower Caves Skirmisher | -6/Factory Resources | -11 -10 -10 -9 -9 -9 -8 -8 -7 -7 -7 -6 ----------- Run | Yrd Mat Min Mat Min Exi Min Mat Fac Low Low Fac Matter Collected 1197 | 280 . 57 83 10 . 110 160 297 54 14 132 Remotely 20 | . . . . . . . . 20 . . . Salvage Created 4738 | 118 . . 424 76 . 332 1041 1557 453 . 737 Parts 194 | 11 . . 26 7 . 17 38 59 16 . 20 Haulers Intercepted 5 | . . . . . . . 3 2 . . . Recyclers Shooed 9 | . . . 2 1 . 2 2 . . . 2 Parts Field Recycled . | . . . . . . . . . . . . Retrieved Matter . | . . . . . . . . . . . . Parts Self-Destructed 14 | . . . . . . . . . 14 . . Prevented 3 | . . . . . . . . . 3 . . Parts Restored . | . . . . . . . . . . . . Kills | -11 -10 -10 -9 -9 -9 -8 -8 -7 -7 -7 -6 ------- Run | Yrd Mat Min Mat Min Exi Min Mat Fac Low Low Fac Combat Hostiles Destroyed 56 | . . . 6 4 . 4 9 13 8 . 12 Guns 33 | . . . 5 4 . . 8 8 2 . 6 Cannons 17 | . . . . . . . 1 5 5 . 6 AOE 4 | . . . . . . 4 . . . . . Classes Destroyed 16 | 2 . . 6 . . . 3 3 2 . . Worker 6 | . . . 1 . . . 1 4 . . . Builder 2 | . . . 1 . . . . . . . 1 Tunneler 8 | 4 . . . 1 . 3 . . . . . Hauler 5 | . . . . . . . 3 2 . . . Recycler 19 | 1 . . 1 . . 4 4 8 . . 1 Operator 2 | . . . . . . . 1 1 . . . Watcher 8 | . . . 2 . . . 2 4 . . . Swarmer 12 | . . . 1 4 . 4 . . . . 3 Grunt 24 | . . . 3 . . . 7 2 4 . 8 Protector 1 | . . . . . . . . 1 . . . Sentry 4 | . . . 2 . . . 1 . 1 . . Specialist 1 | . . . . . . . . 1 . . . Hunter 4 | . . . . . . . 1 1 1 . 1 Programmer 8 | . . . . . . . . 8 . . . Behemoth 1 | . . . . . . . . . 1 . . Mutant 1 | . . . . . . . . . 1 . . Best Kill Streak 10 | 4 . . 4 5 . 6 4 10 3 . 7 Combat Bots Only 6 | . . . 4 4 . 4 3 6 3 . 6 Max Kills in Single Turn 4 | 1 . . 1 1 . 4 2 1 1 . 1 Gunslinging . | . . . . . . . . . . . . Exploded 3 | . . . . . . 3 . . . . . Melee . | . . . . . . . . . . . . Uniques/NPCs Destroyed . | . . . . . . . . . . . . Combat | -11 -10 -10 -9 -9 -9 -8 -8 -7 -7 -7 -6 -------- Run | Yrd Mat Min Mat Min Exi Min Mat Fac Low Low Fac Hostile Shots Fired 454 | . . . 24 25 . 3 34 83 53 . 232 Missed 164 | . . . 6 6 . 1 13 31 24 . 83 Hits 290 | . . . 18 19 . 2 21 52 29 . 149 Melee 1 | . . . . . . . . . . . 1 Projectile 289 | . . . 18 19 . 2 21 52 29 . 148 AOE 5 | . . . . . . . . 5 . . . Critical Strikes 9 | . . . . . . . 3 3 . . 3 Part Disruptions 1 | . . . . . . . . . 1 . . Damage Taken 4149 | . . . 217 149 . 44 310 908 363 . 2158 Core 1249 | . . . 61 30 . 19 116 117 43 . 863 Absorbed by Shields . | . . . . . . . . . . . . Regen/Repaired (Parts) 16 | . . . . . . . . 16 . . . Core Remaining (%) 85 | 100 . 100 . . . 72 78 . . 77 . Volleys Fired 242 | 16 . 2 28 12 . 16 43 63 21 . 41 Largest 3 | 2 . 2 2 2 . 2 3 3 3 . 3 Hottest 212 | 100 . 100 115 115 . 115 199 202 186 . 212 Shots Fired 631 | 20 . 4 56 24 . 30 129 192 63 . 113 Gun 448 | 20 . 4 56 24 . 28 109 128 23 . 56 Cannon 181 | . . . . . . . 20 64 40 . 57 Launcher 2 | . . . . . . 2 . . . . . Special . | . . . . . . . . . . . . Kinetic 8 | . . . . . . . . . . . 8 Thermal 621 | 20 . 4 56 24 . 28 129 192 63 . 105 Explosive 2 | . . . . . . 2 . . . . . Electromagnetic . | . . . . . . . . . . . . Robot Hit Streak 20 | 10 . 3 7 5 . 10 12 20 13 . 11 Robot Miss Streak 5 | 3 . 1 2 2 . 3 3 5 2 . 4 Penetration Max . | . . . . . . . . . . . . Secondary Targets 3 | . . . 2 1 . . . . . . . Max Gunslinging Chain 1 | . . . 1 1 . . . . . . . Shots Hit Robots 379 | 13 . 3 40 14 . 18 80 124 32 . 55 Core Hits 169 | 5 . 1 19 6 . 13 32 54 15 . 24 Critical Kills 2 | . . . . . . . . 1 1 . . Critical Parts Destroyed 1 | . . . . . . . . . . . 1 Critical Strikes 32 | 1 . . 2 . . 1 9 12 2 . 5 Burn 29 | 1 . . 2 . . 1 9 11 1 . 4 Meltdown 2 | . . . . . . . . 1 1 . . Destroy 1 | . . . . . . . . . . . 1 Melee Attacks . | . . . . . . . . . . . . Impact . | . . . . . . . . . . . . Slashing . | . . . . . . . . . . . . Piercing . | . . . . . . . . . . . . Sneak Attacks . | . . . . . . . . . . . . Combat Hostiles . | . . . . . . . . . . . . Follow-up Attacks . | . . . . . . . . . . . . Damage Inflicted 8255 | 163 . 37 531 223 . 593 1449 2686 869 . 1704 Guns 5094 | 163 . 37 531 223 . 251 1174 1749 244 . 722 Cannons 2547 | . . . . . . . 275 937 625 . 710 Explosions 614 | . . . . . . 342 . . . . 272 Melee . | . . . . . . . . . . . . Ramming . | . . . . . . . . . . . . Kinetic 142 | . . . . . . . . . . . 142 Thermal 7499 | 163 . 37 531 223 . 251 1449 2686 869 . 1290 Explosive 614 | . . . . . . 342 . . . . 272 Electromagnetic . | . . . . . . . . . . . . Impact . | . . . . . . . . . . . . Slashing . | . . . . . . . . . . . . Piercing . | . . . . . . . . . . . . Highest Corruption 8 | . . . . . . . . 8 8 8 3 Average Corruption 5 | . . . . . . . . 3 8 8 1 Corruption Purged . | . . . . . . . . . . . . Corruption Blocked . | . . . . . . . . . . . . Effects 64 | . . . . . . . . 28 26 5 5 Message Errors 13 | . . . . . . . . 3 6 2 2 Matter Fused 13 | . . . . . . . . 6 5 1 1 Heat Flow Errors 5 | . . . . . . . . 2 3 . . Energy Discharges 11 | . . . . . . . . 5 5 1 . Parts Fused 1 | . . . . . . . . . . . 1 Data Loss (minor) 12 | . . . . . . . . 8 4 . . Data Loss (major) 1 | . . . . . . . . . . 1 . Misfires 6 | . . . . . . . . 3 3 . . Alerts 2 | . . . . . . . . 1 . . 1 Overload Shots . | . . . . . . . . . . . . Overflow Damage 102 | . . . . . . 30 . 19 . . 53 Projectiles 36 | . . . . . . . . 19 . . 17 Explosions 66 | . . . . . . 30 . . . . 36 Melee . | . . . . . . . . . . . . Knockbacks . | . . . . . . . . . . . . Impact . | . . . . . . . . . . . . Kinetic . | . . . . . . . . . . . . Secondary . | . . . . . . . . . . . . Self-Inflicted Damage 101 | . . . . . . 29 . . . . 72 Shots 2 | . . . . . . 1 . . . . 1 Rammed . | . . . . . . . . . . . . Targets Rammed . | . . . . . . . . . . . . Kicked . | . . . . . . . . . . . . Crushed . | . . . . . . . . . . . . Highest Temperature 350 | 120 . 84 . . . . 164 252 126 . 350 Average Temperature 103 | 48 . 44 . . . . 56 87 39 . 195 Received Heat Transfer 1193 | . . . 69 . . . 216 111 97 . 700 Siege Activations . | . . . . . . . . . . . . Martial Activations . | . . . . . . . . . . . . Shielding Activations . | . . . . . . . . . . . . Robots Disrupted . | . . . . . . . . . . . . Combat Hostiles . | . . . . . . . . . . . . Robots Corrupted . | . . . . . . . . . . . . Combat Hostiles . | . . . . . . . . . . . . Parts Fried . | . . . . . . . . . . . . Impact Corruptions . | . . . . . . . . . . . . Robots Melted 5 | 1 . . 1 . . . . 2 1 . . Combat Hostiles 2 | . . . 1 . . . . . 1 . . Parts Melted 52 | 2 . . 5 1 . 1 11 20 8 . 4 Heat Transferred 16864 | 555 . 111 1702 592 . 703 3774 5630 1412 . 2385 Parts Sabotaged 1 | . . . . . . . . . . . 1 Parts Stolen . | . . . . . . . . . . . . Parts Stripped . | . . . . . . . . . . . . Power Chain Reactions . | . . . . . . . . . . . . Alert | -11 -10 -10 -9 -9 -9 -8 -8 -7 -7 -7 -6 ------- Run | Yrd Mat Min Mat Min Exi Min Mat Fac Low Low Fac Maximum Alert Level 2 | . . . . . . . . . . . 2 Low Security (%) 93 | 100 100 100 100 100 . 100 100 100 . . 28 Level 1 4 | . . . . . . . . . . . 58 Level 2 1 | . . . . . . . . . . . 13 Level 3 . | . . . . . . . . . . . . Level 4 . | . . . . . . . . . . . . Level 5 . | . . . . . . . . . . . . High Security . | . . . . . . . . . . . . Max Security . | . . . . . . . . . . . . Peak Influence 423 | 10 12 . 101 87 . 115 113 149 . . 423 Initial 41 | . . . . 7 . . 41 4 . . . Average 46 | 1 1 . 43 53 . 3 54 31 . . 235 Influence Increases 2076 | 25 18 . 193 95 . 140 321 490 160 . 634 Destroy 0b10 Robot/C 1080 | . . . 120 80 . 80 180 240 140 . 240 Destroy 0b10 Robot/NC 255 | 25 . . 25 5 . 35 55 100 . . 10 Destroy Leader 236 | . . . 34 10 . 10 50 62 20 . 50 Successful Hack 114 | . 18 . 12 . . . 9 70 . . 5 Disable Machine 150 | . . . . . . . 15 15 . . 120 Anti-Garrison Action 150 | . . . . . . . . . . . 150 Destroy Structure 91 | . . . 2 . . 15 12 3 . . 59 Influence Decreases 1770 | 25 18 . 174 82 32 33 416 383 251 28 328 Entered New Map 169 | . . . . 12 32 . 66 8 45 6 . Time Decay 1403 | 25 18 . 164 60 . 33 350 337 206 22 188 Lost Part 198 | . . . 10 10 . . . 38 . . 140 Squads Dispatched 20 | . . 1 1 . . . 4 6 . . 8 Investigation 6 | . . 1 1 . . . . 1 . . 3 Extermination 5 | . . . . . . . . 5 . . . Reinforcement 2 | . . . . . . . 1 . . . 1 Assault 2 | . . . . . . . . . . . 2 Garrison 5 | . . . . . . . 3 . . . 2 Intercept . | . . . . . . . . . . . . Searches Triggered . | . . . . . . . . . . . . Construction Impeded . | . . . . . . . . . . . . Haulers Reinforced . | . . . . . . . . . . . . Active Scanning Responses . | . . . . . . . . . . . . Cargo Convoy Interrupts 1 | . . . . . . . . 1 . . . Stealth | -11 -10 -10 -9 -9 -9 -8 -8 -7 -7 -7 -6 --------- Run | Yrd Mat Min Mat Min Exi Min Mat Fac Low Low Fac Distress Signals 4 | . . . . . . . 1 2 . . 1 Communications Jammed . | . . . . . . . . . . . . Distress Signals . | . . . . . . . . . . . . Times Spotted 107 | . 1 4 12 4 . 4 12 39 8 . 23 Peak Tracking Total 9 | . 1 2 5 4 . 4 4 8 3 . 9 Tactical Retreats . | . . . . . . . . . . . . Traps | -11 -10 -10 -9 -9 -9 -8 -8 -7 -7 -7 -6 ------- Run | Yrd Mat Min Mat Min Exi Min Mat Fac Low Low Fac Traps Triggered 3 | . . . 1 . . . . 2 . . . Indirectly . | . . . . . . . . . . . . Trap Hack Attempts . | . . . . . . . . . . . . Triggered . | . . . . . . . . . . . . Disarmed 4 | . . . . . . . 4 . . . . Reprogrammed . | . . . . . . . . . . . . Reused . | . . . . . . . . . . . . Traps Extracted . | . . . . . . . . . . . . Installed . | . . . . . . . . . . . . Triggered . | . . . . . . . . . . . . Machines | -11 -10 -10 -9 -9 -9 -8 -8 -7 -7 -7 -6 ---------- Run | Yrd Mat Min Mat Min Exi Min Mat Fac Low Low Fac Machines Disabled 11 | . . . . . . . 1 1 . . 9 Max in Single Turn 3 | . . . . . . . 1 1 . . 3 Garrison Access 1 | . . . . . . . . . . . 1 Machines Repaired . | . . . . . . . . . . . . Machines Dismantled . | . . . . . . . . . . . . Machines Sabotaged . | . . . . . . . . . . . . Overloaded Fab Kills . | . . . . . . . . . . . . Hacking | -11 -10 -10 -9 -9 -9 -8 -8 -7 -7 -7 -6 --------- Run | Yrd Mat Min Mat Min Exi Min Mat Fac Low Low Fac Machines Accessed 32 | . 5 1 3 . 3 . 8 8 . . 4 Terminals 18 | . 4 . 3 . . . 6 4 . . 1 Fabricators . | . . . . . . . . . . . . Repair Stations 2 | . 1 . . . . . . 1 . . . Recycling Units 3 | . . . . . . . . 2 . . 1 Scanalyzers 3 | . . . . . . . 1 1 . . 1 Garrison Access 2 | . . . . . . . 1 . . . 1 Total Hacks 92 | . 12 1 6 . 8 . 31 23 . . 11 Successful 50 | . 9 1 3 . 8 . 16 10 . . 3 Failed 41 | . 3 . 3 . . . 14 13 . . 8 Catastrophic 4 | . . . . . . . 1 1 . . 2 Database Lockouts 1 | . . . . . . . 1 . . . . Manual 56 | . 11 . 7 . 1 . 15 16 . . 6 Terminals 47 | . 10 . 6 . . . 16 11 . . 4 Fabricators . | . . . . . . . . . . . . Repair Stations 5 | . 2 . . . . . . 3 . . . Recycling Units 8 | . . . . . . . . 6 . . 2 Scanalyzers 18 | . . . . . . . 12 3 . . 3 Garrison Access 5 | . . . . . . . 3 . . . 2 Terminal Hacks 16 | . 3 1 2 . 8 . 2 . . . . Record 7 | . . . . . 7 . . . . . . Part Schematic 2 | . . . 2 . . . . . . . . Open Door 1 | . . 1 . . . . . . . . . Terminal Index 1 | . 1 . . . . . . . . . . Locate Traps 1 | . . . . . . . 1 . . . . Disarm Traps 1 | . . . . . . . 1 . . . . Patrol Status 1 | . 1 . . . . . . . . . . Zone Layout 1 | . 1 . . . . . . . . . . Proto ID Catalog 1 | . . . . . 1 . . . . . . Fabricator Hacks . | . . . . . . . . . . . . Repair Station Hacks 2 | . . . . . . . . 2 . . . Scan Component 1 | . . . . . . . . 1 . . . Repair 1 | . . . . . . . . 1 . . . Recycling Unit Hacks 1 | . . . . . . . . 1 . . . Report Inventory 1 | . . . . . . . . 1 . . . Scanalyzer 12 | . . . . . . . 9 1 . . 2 Insert Component 5 | . . . . . . . 4 . . . 1 Analyze 5 | . . . . . . . 4 . . . 1 Retrieve Study 2 | . . . . . . . 1 1 . . . Garrison Access Hacks . | . . . . . . . . . . . . Unauthorized Hacks 19 | . 6 . 1 . . . 5 6 . . 1 Terminals 16 | . 5 . 1 . . . 5 4 . . 1 Track 1 | . 1 . . . . . . . . . . Botnet 15 | . 4 . 1 . . . 5 4 . . 1 Fabricators . | . . . . . . . . . . . . Repair Stations 1 | . 1 . . . . . . . . . . Mechanics 1 | . 1 . . . . . . . . . . Recycling Units 2 | . . . . . . . . 2 . . . Monitor 1 | . . . . . . . . 1 . . . Recyclers 1 | . . . . . . . . 1 . . . Scanalyzers . | . . . . . . . . . . . . Garrison Access . | . . . . . . . . . . . . Data Cores Recovered 1 | . . . . . . . . 1 . . . Used 1 | . . . . . . . . 1 . . . Hacking Detections 26 | . 4 . 3 . . . 8 7 . . 4 Full Trace Events 4 | . . . . . . . . 1 . . 3 Feedback Events 1 | . . . . . . . . . . . 1 Corruption 1 | . . . . . . . . . . . 1 Feedback Blocked . | . . . . . . . . . . . . Robot Schematics Acquired . | . . . . . . . . . . . . Robots Built . | . . . . . . . . . . . . Authchips . | . . . . . . . . . . . . Time . | . . . . . . . . . . . . Total Robot Build Rating . | . . . . . . . . . . . . Part Schematics Acquired 5 | . . . 2 . . . 3 . . . . Parts Built . | . . . . . . . . . . . . Authchips . | . . . . . . . . . . . . Time . | . . . . . . . . . . . . Total Part Build Rating . | . . . . . . . . . . . . Part Studies Acquired 2 | . . . . . . . 1 1 . . . Parts Repaired 1 | . . . . . . . . 1 . . . Time 19 | . . . . . . . . 19 . . . Parts Recycled . | . . . . . . . . . . . . Recycled Matter . | . . . . . . . . . . . . Retrieved Matter . | . . . . . . . . . . . . Retrieved Components . | . . . . . . . . . . . . Parts Scanalyzed 4 | . . . . . . . 3 . . . 1 Part Schematics Acquired 3 | . . . . . . . 3 . . . . Parts Damaged . | . . . . . . . . . . . . Bothacking | -11 -10 -10 -9 -9 -9 -8 -8 -7 -7 -7 -6 ------------ Run | Yrd Mat Min Mat Min Exi Min Mat Fac Low Low Fac Used RIF Installer . | . . . . . . . . . . . . Robots Hacked . | . . . . . . . . . . . . Non-combat . | . . . . . . . . . . . . Combat . | . . . . . . . . . . . . Robot Hacks Applied . | . . . . . . . . . . . . Relay Couplers Released 1 | . . . . . . . . . . . 1 Machine Destruction 1 | . . . . . . . . . . . 1 Fabnet Peak Effective % . | . . . . . . . . . . . . Robots Rewired . | . . . . . . . . . . . . Allies Hacked . | . . . . . . . . . . . . Hacks Repelled . | . . . . . . . . . . . . Allies | -11 -10 -10 -9 -9 -9 -8 -8 -7 -7 -7 -6 -------- Run | Yrd Mat Min Mat Min Exi Min Mat Fac Low Low Fac Total Allies . | . . . . . . . . . . . . Largest Group . | . . . . . . . . . . . . Highest-Rated Group . | . . . . . . . . . . . . Highest-Rated Ally . | . . . . . . . . . . . . Total Orders . | . . . . . . . . . . . . Ally Attacks . | . . . . . . . . . . . . Total Damage . | . . . . . . . . . . . . Kills . | . . . . . . . . . . . . Allies Corrupted . | . . . . . . . . . . . . Allies Melted 1 | . . . . . . . . . 1 . . Intel | -11 -10 -10 -9 -9 -9 -8 -8 -7 -7 -7 -6 ------- Run | Yrd Mat Min Mat Min Exi Min Mat Fac Low Low Fac Active Infowar (turns) 6454 | 60 186 250 396 137 557 649 766 1993 908 134 418 Terrain 3 | 3 . . . . . . . . . . . Seismic 2233 | 57 186 250 396 137 557 649 1 . . . . T.N.C. 4218 | . . . . . . . 765 1993 908 134 418 Robot Analysis Total . | . . . . . . . . . . . . Derelict Logs Recovered 1 | . . . . . . . . . 1 . . Drone Launches . | . . . . . . . . . . . . Drone Recoveries . | . . . . . . . . . . . . Exploration | -11 -10 -10 -9 -9 -9 -8 -8 -7 -7 -7 -6 ------------- Run | Yrd Mat Min Mat Min Exi Min Mat Fac Low Low Fac Turns Passed 6550 | 135 186 250 396 137 557 649 787 1993 908 134 418 Spaces Moved 5809 | 104 218 275 267 98 576 615 527 1855 901 148 225 Core 63 | 5 . . . . . . . . . . 58 Treads 25 | . . . 25 . . . . . . . . Legs 24 | . . . . . . . . . . . 24 Wheels 5697 | 99 218 275 242 98 576 615 527 1855 901 148 143 Hover . | . . . . . . . . . . . . Flight . | . . . . . . . . . . . . Fastest Speed 50 | 50 80 80 95 95 95 90 90 86 90 90 50 Average Speed 93 | 78 80 80 110 102 95 94 104 89 90 90 106 Slowest Speed 260 | 80 80 95 240 110 95 105 105 120 90 90 260 Overloaded Moves . | . . . . . . . . . . . . Propulsion Burnouts . | . . . . . . . . . . . . Robots Hopped . | . . . . . . . . . . . . Potential Cave-ins 3 | . . . . . . . . . 3 . . Cave-ins Triggered . | . . . . . . . . . . . . Exploration Rate (%) 41 | 5 43 49 28 9 91 79 43 34 88 22 6 Regions Visited 11 Branch Regions 6 Pre-discovered Areas 1 | . . . . . 1 . . . . . . Known Exits Taken 3 | . . . . . . . . 1 1 1 . Unknown Exits Taken 8 | 1 1 1 1 1 1 1 1 . . . . Scrap Searched 6 | . . . . . . 1 . . 3 2 . Spaces Dug 6 | . . . . . . . . . 6 . . Terrain Destroyed 95 | . . . . . . 16 9 . 13 . 57 Melee . | . . . . . . . . . . . . Projectile 39 | . . . . . . . 9 . 13 . 17 AOE 56 | . . . . . . 16 . . . . 40 Terrain Rammed . | . . . . . . . . . . . . Walls Destroyed . | . . . . . . . . . . . . Machines Disabled . | . . . . . . . . . . . . Actions | -11 -10 -10 -9 -9 -9 -8 -8 -7 -7 -7 -6 --------- Run | Yrd Mat Min Mat Min Exi Min Mat Fac Low Low Fac Total 6460 | 133 229 303 313 110 585 649 670 2049 953 149 317 Wait 195 | . 4 5 . . 6 6 66 54 27 . 27 Move 5798 | 103 217 274 266 97 575 614 526 1854 900 147 225 Hop . | . . . . . . . . . . . . Pick Up 51 | 5 5 6 4 . 1 . 6 18 3 1 2 Fast Attach 29 | 8 . 4 3 1 . . 3 4 . . 6 Attach 25 | . . . 2 . 1 . 5 13 . . 4 Detach 14 | 1 . . . . . . 2 9 . . 2 Swap 37 | . 1 1 3 . 1 9 7 12 . . 3 Drop 69 | . 2 11 7 . 1 4 12 22 2 1 7 Fire 242 | 16 . 2 28 12 . 16 43 63 21 . 41 Melee . | . . . . . . . . . . . . Ram . | . . . . . . . . . . . . Kick . | . . . . . . . . . . . . Crush . | . . . . . . . . . . . . Escape Stasis . | . . . . . . . . . . . . Rewire . | . . . . . . . . . . . . Trap . | . . . . . . . . . . . . Miscellaneous . | . . . . . . . . . . . . Route ------- -11/Scrapyard -10/Materials -10/Mines -9/Materials (discovered 3 exits: [*Min x2] / [*Sto]) -9/Mines -9/Exiles -8/Mines -8/Materials -7/Factory -7/Lower Caves -7/Lower Caves -6/Factory History --------- Turn | Location | Event 8 | -11/Scrapyard | Discovered new exit (range 15) 136 | -11/Scrapyard | Entered Materials 281 | -10/Materials | Discovered new exit (range 13) 322 | -10/Materials | Entered Mines 324 | -10/Mines | Build established: Mutant 327 | -10/Mines | Met a Derelict shopkeep closing up shop 395 | -10/Mines | Joined a pair of Derelicts in attacking an 0b10 outpost 487 | -10/Mines | YI-UF0 nonchalantly dropped a Grenade Launcher on the ground 563 | -10/Mines | Discovered new exit (range 5) 572 | -10/Mines | Entered Materials 572 | -9/Materials | Evolved 2 slots: Utility x2 600 | -9/Materials | Discovered new exit (range 13) 930 | -9/Materials | Discovered new exit (range 8) 964 | -9/Materials | Discovered new exit (range 10) 968 | -9/Materials | Entered Mines 1057 | -9/Mines | Met a Derelict bent on vengeance 1092 | -9/Mines | Build established: Scavenger-Mutant 1100 | -9/Mines | Deemed a non-threat by the Exiles lab entrance 1100 | -9/Mines | Discovered new exit (range 5) 1105 | -9/Mines | Entered Exiles 1127 | -9/Exiles | Met 8R-AWN 1144 | -9/Exiles | Met EX-HEX 1214 | -9/Exiles | Met EX-DEC 1247 | -9/Exiles | Learned location of Zion (-7) 1284 | -9/Exiles | Discovered new exit (range 11) 1359 | -9/Exiles | Visited The Gauntlet 1505 | -9/Exiles | Met EX-BIN 1520 | -9/Exiles | Aligned with FarCom system 1521 | -9/Exiles | Given EX-Vault access code 1544 | -9/Exiles | Opened EX-Vault 1571 | -9/Exiles | Found Modified TNC 1591 | -9/Exiles | Warned to stay clear of 0b10 Research branches 1662 | -9/Exiles | Left Exiles lab with Modified TNC 1662 | -9/Exiles | Entered Mines 2291 | -8/Mines | Discovered new exit (range 11) 2311 | -8/Mines | Entered Materials 2311 | -8/Materials | Evolved 2 slots: Utility x1, Weapon x1 2319 | -8/Materials | Central database locked down 2386 | -8/Materials | Garrison activated, responded to threat 2587 | -8/Materials | Build established: Scavenger-Skirmisher 2942 | -8/Materials | Build established: Skirmisher 3020 | -8/Materials | Discovered new exit (range 8) 3098 | -8/Materials | Entered Factory 3098 | -7/Factory | Evolved 2 slots: Propulsion x1, Utility x1 3574 | -7/Factory | Repaired Cryofiber Web 4363 | -7/Factory | Discovered new exit (range 16) 4638 | -7/Factory | Allied Derelicts emerged from ambush trap array 4714 | -7/Factory | Cargo convoy interrupted 4756 | -7/Factory | Lost 3 allies 4767 | -7/Factory | Lost 3 parts (2n1u) 4907 | -7/Factory | Found PL-3XN's Ring of Power 4939 | -7/Factory | Found Prototype Processor 4955 | -7/Factory | Found Prototype Processor 5016 | -7/Factory | Identified Exp. Signal Interpreter (x2) 5090 | -7/Factory | Identified exit to Lower Caves 5091 | -7/Factory | Entered Lower Caves 5108 | -7/Lower Caves | Attracted the attention of an 0b10 checkpoint 5379 | -7/Lower Caves | Build established: Tank 5388 | -7/Lower Caves | Spotted B-75 Beast 5392 | -7/Lower Caves | Destroyed B-75 Beast 5507 | -7/Lower Caves | Attacked by a delusional Derelict stockpiling parts 5813 | -7/Lower Caves | Learned Factory stockpile data 5895 | -7/Lower Caves | Discovered new exit (range 16) 5910 | -7/Lower Caves | Found DCF Scrap (13 items) 5924 | -7/Lower Caves | Identified exit to Lower Caves 5999 | -7/Lower Caves | Entered another Lower Caves area 6097 | -7/Lower Caves | Discovered new exit (range 11) 6101 | -7/Lower Caves | Encountered a Warlord checkpoint 6106 | -7/Lower Caves | Identified exit to Factory 6133 | -7/Lower Caves | Entered Factory 6133 | -6/Factory | Evolved 2 slots: Power x1, Utility x1 6235 | -6/Factory | Garrison activated, responded to threat 6295 | -6/Factory | Lost 6 parts (2p2n1u1w) 6509 | -6/Factory | Core integrity fell below 50% 6531 | -6/Factory | Core integrity fell below 20% 6533 | -6/Factory | Lost 8 parts (1p1n3u3w) 6551 | -6/Factory | Destroyed by G-67 Veteran with Field Laser Last Messages --------------- Leg. 06504_ Dropped Med. Storage Unit. 06505_ Dropped Faulty Gravity Neutralizer. 06505_ Critical hit (Burn: +37). 06506_ G-67 Veteran heat damages core (-23). 06506_ Acquired Com. Ion Cannon. 06506_ G-67 Veteran overheating. 06516_ Acquired Arm. Huge Wheel. 06519_ System corrupted: Matter fused (-7). 06519_ C-45 Heavy ARC bursts open, deploying its payload. 06519_ G-67 Veteran unfolds itself. 06519_ G-50 Soldier unfolds itself. 06519_ E-15 Imp unfolds itself. 06520_ Cryofiber Web blown off. 06520_ E-15 Imp destroyed. 06523_ Dropped Arm. Huge Wheel. 06530_ Penetrated by Slug. 06548_ Critical hit (Burn: +50). 06549_ Penetrated by Slug. Map ----- +----------------------------------------------------+ | ?????????????????????????????????????????????????? | | ?????????????????????????????????????????????????? | | ?????????????????????????????????????????????????? | | ?????????????????????????????????????????????????? | | ?????????????????????????????????????????????????? | | ?????????????????????????????????????????????????? | | ?????????????????????????????????????????????????? | | ?????????????????????????????????????????????????? | | ?????????????????????????????????????????????????? | | ?????????????????????????????????????????????????? | | ???????????????????##########????????????????????? | | ???????????????????# #??????????????????### | | ???????????????????# #?????????????????? | | ???????????????????# !! #?????????????????? | | ???????????????????# !! #?????????????????"" | | ???????????????????# !! #?????????????"""""" | | ???????????????????# #???????????? """""" | | ???????????????????# #??????????? """""" | | ???????????????????# #?????????? | | ???????????????????# g #?????????# | | ???????????????????#####+####?????????# " | | ?# ###+############# g g #??????????# " | | ?# h #??????????# "! | | ?# #??????????# | | ?# g #??????????############ | | ??????###+### ######## g@ #???????????# """ """ | | ????????????#+##########A###???????????# """ """ | | ????????????# #?#Y#?????????????# """ """ | | ????????????# """"" ###%#########+###?# | | ????????????# """"" # "g ###[ | | ????????????# """ g#= "#####"##""## | | ????????????# /!= | | ????????????# ! =#%!/ """"" ######### | | ????????????# [= #== """"" # # | | ????????????# [= #== """ # + | | ????????????#! [ #== # #+### | | ????????????########## """" # # ? | | ???????????????????# """% # # | | ???????????????????# !! "%%%! # # "" | | ???????????????????+ ! % ][ # # "" | | ???????????????????# [% ! # # "" | | ???????????????????# ! # ? "" | | ???????????????????################### ? "" | | ?????????????????????????????????????########? "" | | ??????????????????????????????????????????????###? | | | | | | | | | | | +----------------------------------------------------+ Best States ------------- Heat Dissipation 102 Energy Generation 25 Energy Capacity 430 Matter Stores 300 Matter Capacity 300 Sight Range 16 Terrain Scan Density 10 Base Temperature (-) 100 EM Shielding 4 Armor Coverage 225 Evasion (%) 50 Targeting Accuracy 5 Recoil Reduction 1 Energy Filtering 50 Item Schematics ----------------- Wheel | -9/Materials | Hacked Med. Laser | -9/Materials | Hacked Lgt. Armor Plating | -8/Materials | Scanalyzed Imp. Medium Laser | -8/Materials | Scanalyzed Lgt. Deuterium Engine | -8/Materials | Scanalyzed Robot Schematics ------------------ None Fabricated ------------ Nothing Repaired ---------- Cryofiber Web | 46% | -7/Factory Studied --------- Com. Wheel | -8/Materials | Hacked Hvy. Particle Cannon | -7/Factory | Hacked Alien Tech Used ----------------- None Achievements -------------- Jackpot Challenges ------------ None Game ------ Seed GravityPointyTether Manual? 0 Play Time 01:45:17 Cumulative 55.9 hours Start 2026.07.27 @ 22:53:03 End 2026.07.28 @ 03:56:17 Sessions 5 Manual Loads 0 Difficulty Rogue Special Mode None Game No. 158 Rogue 89 Adventurer 69 Explorer 0 Win Type - Total 0 Types 0/0/0/0/0/0/0/0/0/0 Lore% 24 Gallery% 40 Achievement% 26 Wizard Run 0 Options --------- Layout 1 ASCII 0 Keyboard 1 Movement Numpad Keybinds 0 Fullscreen 2 Font 24/Smallcaps Map View 50x35 Zoom Use 0% Tactical HUD 1 Map Filters NONE Filters NONE Steam 1 RUN: be8bd70b-0793-4588-960f-f23ca7873395